[Event "FIDE World Cup O10-B 2024"]
[Site "Batumi"]
[Date "2024.06.28"]
[Round "6.1"]
[White "Ling, Chenxuan"]
[Black "Modith Aaroh Mutyalapati"]
[Result "1-0"]
[ECO "D10"]
[WhiteElo "1868"]
[BlackElo "1866"]
[Annotator "NA RC"]
[PlyCount "121"]
[EventDate "2024.06.23"]
[EventType "swiss"]
[EventCountry "GEO"]
[SourceTitle "playchess.com"]
[Source "ChessBase"]
[SourceQuality "1"]
[TimeControl "5400+30"]

1. d4 {[%emt 0:00:12]} d5 {[%emt 0:00:19]} 2. c4 {[%emt 0:00:06]} c6 {[%emt 0:00:03]} 3. cxd5 {[%emt 0:00:05]} cxd5 {[%emt 0:00:07]} 4. Bf4 {[%emt 0:00:04]} Nc6 {[%emt 0:00:06]} 5. e3 {[%emt 0:00:14]} Nf6 {[%emt 0:00:05]} 6. Bd3 {[%emt 0:00:10] D10: Slav Defence: 3 cxd5 (without early Nf3) and 3 Nc3.} Bg4 {[%emt 0:01:53]} 7. f3 {[%emt 0:00:05] is more profitable than 7.Ne2 at the moment.} Bh5 {[%emt 0:00:06]} 8. Qb3 {[%emt 0:00:26]} Qd7 {[%emt 0:01:15]} 9. Bb5 {[%emt 0:00:12]} a6 $146 {[%emt 0:06:30]} ({Predecessor:} 9... e6 10. Nd2 Rc8 11. Ne2 Bg6 12. Rc1 Be7 13. Kf2 O-O 14. Rc3 Nh5 15. Rhc1 f6 16. Bxc6 bxc6 {1-0 Yakubboev,N (2630)-Kramnik,V (2753) Airthings Masters Div 2 L rapid 2023 (4.3)}) 10. Bxc6 {[%emt 0:00:40]} Qxc6 {[%emt 0:00:43]} 11. Ne2 {[%emt 0:00:05]} Bg6 {[%emt 0:15:37] [#]} 12. Kd2 {[%emt 0:01:57]} ({White should try} 12. Na3 $1 $16) 12... b5 {[%emt 0:09:20]} 13. Rc1 {[%emt 0:01:11]} Qb6 {[%emt 0:00:12]} 14. a4 {[%emt 0:03:48]} Bxb1 {[%emt 0:02:36]} 15. Raxb1 {[%emt 0:01:37]} e6 {[%emt 0:00:53]} 16. axb5 {[%emt 0:02:18]} Be7 {[%emt 0:03:19]} 17. Ra1 {[%emt 0:04:35]} O-O {[%emt 0:01:41]} 18. Rc7 {[%emt 0:01:33]} Qxb5 {[%emt 0:08:14]} 19. Qxb5 {[%emt 0:00:56]} axb5 {[%emt 0:00:01]} 20. Rxa8 {[%emt 0:00:17]} Bb4+ {[%emt 0:00:01]} 21. Kc2 {[%emt 0:00:34]} Rxa8 {[%emt 0:00:07]} 22. Rb7 {[%emt 0:00:06]} Bf8 {[%emt 0:10:32]} ({Black should try} 22... Ne8) 23. Rxb5 {[%emt 0:01:44]} Rc8+ {[%emt 0:00:49]} 24. Kd2 {[%emt 0:01:47]} Nh5 {[%emt 0:03:25]} 25. Rb8 {[%emt 0:00:56]} Rc6 $2 {[%emt 0:00:01]} (25... Rxb8 $16 26. Bxb8 Bb4+ 27. Kd3 Kf8) 26. b4 $18 {[%emt 0:01:13]} (26. Be5 f6 27. g4 fxe5 $14) 26... Nxf4 {[%emt 0:02:56]} 27. Nxf4 {[%emt 0:00:37]} Rc4 {[%emt 0:00:17]} 28. b5 {[%emt 0:00:18]} g6 {[%emt 0:00:51]} 29. Nd3 {[%emt 0:00:34]} Kg7 {[%emt 0:00:29]} 30. b6 {[%emt 0:00:30]} Bd6 {[%emt 0:02:47]} 31. Rd8 {[%emt 0:00:49]} Bb4+ {[%emt 0:00:04]} 32. Kd1 {[%emt 0:00:07]} Ba5 {[%emt 0:00:01]} 33. b7 {[%emt 0:00:12]} Bxd8 {[%emt 0:00:23]} 34. b8=Q {[%emt 0:00:07]} Bf6 {[%emt 0:00:27]} 35. Ne5 {[%emt 0:00:17]} Bxe5 {[%emt 0:00:06]} 36. Qxe5+ {[%emt 0:00:02]} Kg8 {[%emt 0:00:28]} 37. e4 {[%emt 0:00:05]} Rb4 {[%emt 0:00:10]} 38. exd5 {[%emt 0:00:24]} Rb5 {[%emt 0:00:06]} 39. dxe6 {[%emt 0:00:13]} Rxe5 {[%emt 0:00:07]} 40. exf7+ {[%emt 0:00:03]} Kxf7 {[%emt 0:00:10]} 41. dxe5 {[%emt 0:00:01]} g5 {[%emt 0:01:56]} 42. g3 {[%emt 0:00:10]} Ke6 {[%emt 0:00:07]} 43. f4 {[%emt 0:00:05]} h6 {[%emt 0:00:13]} 44. Ke2 {[%emt 0:00:05]} g4 {[%emt 0:00:12]} 45. Ke3 {[%emt 0:00:05]} Kd5 {[%emt 0:00:04]} 46. Kd3 {[%emt 0:00:04]} h5 {[%emt 0:00:03]} 47. Ke3 {[%emt 0:00:03]} h4 {[%emt 0:00:09]} 48. gxh4 {[%emt 0:00:05]} g3 {[%emt 0:00:04]} 49. hxg3 {[%emt 0:00:05]} Ke6 {[%emt 0:02:18]} 50. Ke4 {[%emt 0:00:13]} Kf7 {[%emt 0:00:03]} 51. f5 {[%emt 0:00:04]} Kg7 {[%emt 0:00:03]} 52. g4 {[%emt 0:00:04]} Kf7 {[%emt 0:00:04]} 53. g5 {[%emt 0:00:04]} Kg7 {[%emt 0:00:03]} 54. h5 {[%emt 0:00:04]} Kf7 {[%emt 0:00:03]} 55. e6+ {[%emt 0:00:04]} Kg7 {[%emt 0:00:02]} 56. f6+ {[%emt 0:00:07]} Kh7 {[%emt 0:00:03]} 57. g6+ {[%emt 0:00:04]} Kh6 {[%emt 0:00:04]} 58. g7 {[%emt 0:00:07]} Kh7 {[%emt 0:00:03]} 59. h6 {[%emt 0:00:07]} Kxh6 {[%emt 0:37:09]} 60. g8=Q {[%emt 0:00:10]} Kh5 {[%emt 0:00:00]} 61. Kf5 {[%emt 0:00:01]} 1-0

[Event "FIDE World Cup O10-B 2024"]
[Site "Batumi"]
[Date "2024.06.28"]
[Round "6.2"]
[White "Karthik, Anand T."]
[Black "Shogdzhiev, Roman"]
[Result "1-0"]
[ECO "B23"]
[WhiteElo "2022"]
[BlackElo "2060"]
[Annotator "NA RC"]
[PlyCount "141"]
[EventDate "2024.06.23"]
[EventType "swiss"]
[EventCountry "GEO"]
[SourceTitle "playchess.com"]
[Source "ChessBase"]
[SourceQuality "1"]
[TimeControl "5400+30"]

1. e4 {[%emt 0:00:26]} c5 {[%emt 0:00:14]} 2. Nc3 {[%emt 0:00:43]} d6 {[%emt 0:00:08]} 3. f4 {[%emt 0:00:05]} Nc6 {[%emt 0:00:09]} 4. Nf3 {[%emt 0:00:10]} g6 {[%emt 0:00:04]} 5. Bc4 {[%emt 0:00:48]} Bg7 {[%emt 0:00:05]} 6. O-O {[%emt 0:01:04]} e6 {[%emt 0:00:07]} 7. d4 {[%emt 0:00:43] B23: Closed Sicilian: Lines without g3.} cxd4 {[%emt 0:01:48]} 8. Nb5 {[%emt 0:00:52]} Nge7 {[%emt 0:00:12]} 9. Bb3 {[%emt 0:00:11]} O-O {[%emt 0:00:11]} 10. Nbxd4 {[%emt 0:01:40]} Na5 {[%emt 0:00:08]} 11. c3 {[%emt 0:02:34]} b6 {[%emt 0:03:12]} ({Better is} 11... Nxb3 $15 12. Qxb3 e5) 12. Bc2 {[%emt 0:05:06]} Bb7 {[%emt 0:07:09]} (12... Ba6 $11 {remains equal.}) 13. Re1 {[%emt 0:04:31]} (13. f5 $16) 13... a6 {[%emt 0:05:02]} 14. Qe2 {[%emt 0:04:19]} e5 {[%emt 0:02:22]} (14... Qc7 $11 {keeps the balance.}) 15. Nb3 {[%emt 0:01:12]} Nac6 {[%emt 0:00:26]} 16. Be3 {[%emt 0:02:15]} (16. f5 $16) 16... Qc7 {[%emt 0:02:14]} 17. Qf2 {[%emt 0:01:02]} b5 {[%emt 0:02:51]} 18. Bb6 {[%emt 0:01:11]} Qc8 {[%emt 0:02:17]} 19. Rad1 {[%emt 0:01:16]} exf4 {[%emt 0:01:13]} 20. Rxd6 {[%emt 0:03:07]} Ne5 {[%emt 0:01:28]} 21. Nxe5 {[%emt 0:01:35]} Bxe5 {[%emt 0:00:02]} 22. Rd2 {[%emt 0:01:16]} Qe6 {[%emt 0:04:30]} 23. Na5 {[%emt 0:02:51]} Bc8 {[%emt 0:00:12]} 24. Bb3 {[%emt 0:01:52]} Qf6 {[%emt 0:00:45]} 25. c4 {[%emt 0:08:06]} (25. Bd5 $14 Rb8 26. Bc5 (26. Ba7 Nxd5 27. exd5 Ra8 $18)) 25... Bg4 {[%emt 0:05:31]} (25... Be6 $11) 26. c5 {[%emt 0:05:09]} Rae8 {[%emt 0:00:59]} 27. h3 {[%emt 0:03:01]} Bc8 {[%emt 0:05:50]} 28. Red1 {[%emt 0:04:06]} Be6 {[%emt 0:06:39]} 29. Bd8 {[%emt 0:07:26]} Bxb3 $14 {[%emt 0:05:33]} 30. axb3 {[%emt 0:00:49]} Qe6 {[%emt 0:03:09]} 31. b4 {[%emt 0:05:24]} Qc8 {[%emt 0:05:57]} 32. Bxe7 {[%emt 0:03:25]} Rxe7 {[%emt 0:00:03]} 33. Qf3 {[%emt 0:00:29]} Rfe8 {[%emt 0:02:52]} 34. Re2 {[%emt 0:03:06]} Kg7 {[%emt 0:04:09]} 35. Rd5 {[%emt 0:00:51]} h5 {[%emt 0:04:30]} 36. Nb3 {[%emt 0:01:33]} Qe6 {[%emt 0:01:05]} 37. Nc1 {[%emt 0:00:58]} Qf6 {[%emt 0:02:10]} 38. Nd3 {[%emt 0:00:25]} Bd4+ {[%emt 0:00:19]} 39. Kh1 {[%emt 0:00:14]} Be3 {[%emt 0:00:03]} 40. e5 {[%emt 0:04:30]} Qf5 {[%emt 0:02:47]} 41. Kh2 {[%emt 0:02:25]} h4 {[%emt 0:01:39]} 42. Qg4 {[%emt 0:01:34]} Qe4 {[%emt 0:01:42]} 43. Qf3 {[%emt 0:00:26]} Qc4 {[%emt 0:01:08]} 44. Rd6 {[%emt 0:02:23]} Re6 {[%emt 0:00:46]} 45. Rd7 {[%emt 0:02:54]} R8e7 {[%emt 0:03:50]} 46. Rd8 {[%emt 0:00:40]} Re8 {[%emt 0:01:53]} 47. Rd7 {[%emt 0:00:25]} R6e7 {[%emt 0:01:14]} 48. Rd6 {[%emt 0:03:05]} Kg8 {[%emt 0:03:05]} 49. Qd5 {[%emt 0:01:41]} Kh7 {[%emt 0:01:03]} 50. c6 {[%emt 0:01:32]} Rc8 {[%emt 0:02:47]} 51. Qf3 {[%emt 0:02:59]} Rec7 {[%emt 0:02:10]} 52. Ne1 {[%emt 0:01:04]} Kg8 {[%emt 0:03:55]} 53. e6 {[%emt 0:02:40]} fxe6 {[%emt 0:01:42]} 54. Qg4 {[%emt 0:00:06]} Kf7 {[%emt 0:00:04]} 55. Nf3 {[%emt 0:00:19]} Ke7 {[%emt 0:02:01]} 56. Rd7+ {[%emt 0:02:21]} Rxd7 {[%emt 0:00:01]} 57. cxd7 {[%emt 0:00:09]} Rc5 {[%emt 0:00:04]} 58. bxc5 {[%emt 0:00:31]} Qxe2 {[%emt 0:00:02]} 59. c6 {[%emt 0:00:23]} Bb6 {[%emt 0:01:57]} 60. Qg5+ {[%emt 0:00:19]} Kd6 {[%emt 0:00:31]} 61. d8=Q+ {[%emt 0:00:14]} Bxd8 {[%emt 0:00:20]} 62. Qxd8+ {[%emt 0:00:06]} Kc5 {[%emt 0:00:08]} 63. c7 {[%emt 0:00:07]} Qxb2 {[%emt 0:00:17]} 64. c8=Q+ {[%emt 0:00:07]} Kb4 {[%emt 0:00:03]} 65. Qe7+ {[%emt 0:00:09]} Ka4 {[%emt 0:00:09]} 66. Qxa6+ {[%emt 0:00:06]} Kb3 {[%emt 0:00:04]} 67. Qxb5+ {[%emt 0:00:05]} Kc2 {[%emt 0:00:07]} 68. Qec5+ {[%emt 0:00:07]} Kb1 {[%emt 0:00:05]} 69. Nd2+ {[%emt 0:00:06]} Ka1 {[%emt 0:00:05]} 70. Qa5+ {[%emt 0:00:07]} Qa3 {[%emt 0:00:23]} 71. Qcxa3# {[%emt 0:00:07]} 1-0

[Event "FIDE World Cup O10-B 2024"]
[Site "Batumi"]
[Date "2024.06.28"]
[Round "6.3"]
[White "Yu, Zechen"]
[Black "Rahul Ramakrishnan"]
[Result "1-0"]
[ECO "C14"]
[WhiteElo "1889"]
[BlackElo "1838"]
[Annotator "NA RC"]
[PlyCount "117"]
[EventDate "2024.06.23"]
[EventType "swiss"]
[EventCountry "GEO"]
[SourceTitle "playchess.com"]
[Source "ChessBase"]
[SourceQuality "1"]
[TimeControl "5400+30"]

1. e4 {[%emt 0:00:02]} e6 {[%emt 0:00:07]} 2. d4 {[%emt 0:00:04]} d5 {[%emt 0:00:02]} 3. Nc3 {[%emt 0:00:08]} Nf6 {[%emt 0:00:20]} 4. Bg5 {[%emt 0:00:05]} Be7 {[%emt 0:00:18]} 5. e5 {[%emt 0:00:06]} Nfd7 {[%emt 0:00:07]} 6. h4 {[%emt 0:00:05]} h6 {[%emt 0:00:41]} 7. Bxe7 {[%emt 0:00:08]} Qxe7 {[%emt 0:00:14]} 8. f4 {[%emt 0:00:44]} a6 {[%emt 0:01:31] C14: French: Classical System: 4 Bg5 Be7 main line.} 9. Qd2 {[%emt 0:02:22]} c5 {[%emt 0:02:07]} 10. Nf3 {[%emt 0:00:07]} Nc6 {[%emt 0:02:03]} 11. Ne2 {[%emt 0:00:33]} cxd4 {[%emt 0:03:58]} 12. Nexd4 {[%emt 0:00:10]} ({Reject} 12. Nfxd4 f6 $11) 12... Nxd4 {[%emt 0:09:18]} 13. Nxd4 {[%emt 0:01:14]} Nc5 {[%emt 0:05:06]} 14. Bd3 {[%emt 0:01:22]} Bd7 {[%emt 0:02:49]} (14... Nxd3+ $11 15. cxd3 O-O) 15. O-O-O {[%emt 0:04:00]} O-O-O {[%emt 0:06:25]} 16. Kb1 {[%emt 0:04:47]} Nxd3 {[%emt 0:01:48]} 17. Qxd3 {[%emt 0:09:29]} Kb8 {[%emt 0:05:03]} 18. h5 {[%emt 0:02:09]} Rc8 {[%emt 0:05:22]} 19. g4 {[%emt 0:04:29]} Rc4 {[%emt 0:02:51]} 20. c3 {[%emt 0:11:20]} (20. Qd2 $16) 20... Rhc8 {[%emt 0:05:54]} 21. Rc1 {[%emt 0:07:52]} (21. Rhg1 $16) 21... a5 {[%emt 0:02:53]} (21... b5 $14 {might be stronger.}) 22. b3 {[%emt 0:03:59]} R4c5 {[%emt 0:02:45]} 23. Kb2 {[%emt 0:04:01]} a4 $14 {[%emt 0:05:19]} 24. b4 {[%emt 0:03:18]} Rc4 {[%emt 0:01:58]} 25. a3 {[%emt 0:00:32]} f6 {[%emt 0:08:59]} 26. Qe3 {[%emt 0:01:40]} fxe5 {[%emt 0:10:33]} 27. Qxe5+ {[%emt 0:00:19]} Ka8 {[%emt 0:15:29]} 28. Nf5 {[%emt 0:14:55]} Qf8 {[%emt 0:00:00]} 29. Nd6 {[%emt 0:01:07]} Qxf4 {[%emt 0:00:00]} 30. Qxf4 {[%emt 0:00:57]} Rxf4 {[%emt 0:00:00]} 31. Nxc8 {[%emt 0:00:11]} Bxc8 {[%emt 0:00:00]} 32. Rcf1 {[%emt 0:01:34]} e5 {[%emt 0:00:00]} 33. Rxf4 {[%emt 0:00:24]} exf4 {[%emt 0:00:00]} 34. Rf1 {[%emt 0:00:05]} Bxg4 {[%emt 0:00:00]} 35. Rxf4 {[%emt 0:00:03]} Bxh5 {[%emt 0:00:00]} 36. Rf5 {[%emt 0:00:23]} Bg4 {[%emt 0:00:00]} 37. Rxd5 {[%emt 0:00:05]} g6 {[%emt 0:00:00]} 38. Rd8+ {[%emt 0:01:55]} Ka7 {[%emt 0:00:00]} 39. c4 {[%emt 0:02:47]} h5 {[%emt 0:00:00]} 40. Kc3 {[%emt 0:00:29]} Be6 {[%emt 0:02:42]} 41. Kd4 {[%emt 0:02:27]} h4 {[%emt 0:00:31]} 42. Rh8 {[%emt 0:01:33]} h3 {[%emt 0:00:39]} 43. Kc5 {[%emt 0:02:11]} g5 {[%emt 0:01:37]} 44. b5 {[%emt 0:00:12]} b6+ {[%emt 0:00:35]} 45. Kc6 {[%emt 0:00:19]} Bf5 {[%emt 0:01:57]} 46. c5 {[%emt 0:00:49]} Be4+ {[%emt 0:00:01]} 47. Kc7 {[%emt 0:00:06]} bxc5 {[%emt 0:00:07]} 48. Rxh3 {[%emt 0:00:45]} c4 {[%emt 0:00:50]} 49. Rc3 {[%emt 0:00:21]} Bd5 {[%emt 0:00:32]} 50. b6+ {[%emt 0:00:20]} Ka6 {[%emt 0:00:12]} 51. Rxc4 {[%emt 0:00:12]} Bxc4 {[%emt 0:01:35]} 52. b7 {[%emt 0:00:05]} Kb5 {[%emt 0:00:08]} 53. b8=Q+ {[%emt 0:00:07]} Kc5 {[%emt 0:00:11]} 54. Qb4+ {[%emt 0:00:13]} Kd5 {[%emt 0:00:22]} 55. Qxa4 {[%emt 0:00:05]} g4 {[%emt 0:00:21]} 56. Qd7+ {[%emt 0:00:07]} Kc5 {[%emt 0:00:06]} 57. Qd6+ {[%emt 0:00:05]} Kb5 {[%emt 0:00:06]} 58. Qb4+ {[%emt 0:00:04]} Ka6 {[%emt 0:00:10]} 59. Qa4# {[%emt 0:19:59]} 1-0

[Event "FIDE World Cup O10-B 2024"]
[Site "Batumi"]
[Date "2024.06.28"]
[Round "6.4"]
[White "AlJamaat, Khaled"]
[Black "Zabelin, Platon"]
[Result "1/2-1/2"]
[ECO "D53"]
[WhiteElo "1644"]
[BlackElo "1799"]
[Annotator "NA RC"]
[PlyCount "113"]
[EventDate "2024.06.23"]
[EventType "swiss"]
[EventCountry "GEO"]
[SourceTitle "playchess.com"]
[Source "ChessBase"]
[SourceQuality "1"]
[TimeControl "5400+30"]

1. d4 {[%emt 0:00:16]} d5 {[%emt 0:00:09]} 2. c4 {[%emt 0:00:12]} e6 {[%emt 0:00:04]} 3. Nf3 {[%emt 0:00:05]} Nf6 {[%emt 0:00:08]} 4. Nc3 {[%emt 0:00:12]} Be7 {[%emt 0:00:11]} 5. Bg5 {[%emt 0:00:35]} O-O {[%emt 0:00:27]} 6. cxd5 {[%emt 0:00:22]} Nxd5 {[%emt 0:00:03]} 7. Bxe7 {[%emt 0:04:26]} Qxe7 {[%emt 0:02:03]} 8. e3 {[%emt 0:00:52]} Nxc3 {[%emt 0:00:28]} 9. bxc3 {[%emt 0:00:08]} c5 {[%emt 0:00:01]} 10. Bd3 {[%emt 0:02:20]} Nc6 {[%emt 0:00:27]} 11. O-O {[%emt 0:00:30]} e5 {[%emt 0:00:39]} 12. d5 {[%emt 0:02:05]} e4 {[%emt 0:00:05]} 13. dxc6 {[%emt 0:02:12]} Rd8 {[%emt 0:00:13]} 14. Qc2 {[%emt 0:06:29]} exd3 {[%emt 0:04:32]} 15. cxb7 {[%emt 0:06:49]} Bxb7 {[%emt 0:00:15]} 16. Qa4 {[%emt 0:04:58]} Bxf3 {[%emt 0:02:08]} 17. gxf3 {[%emt 0:00:09]} Qf6 {[%emt 0:01:13]} 18. f4 {[%emt 0:03:09]} Qxc3 {[%emt 0:02:20]} 19. Rac1 {[%emt 0:00:30]} Qb2 {[%emt 0:07:15]} 20. Rxc5 {[%emt 0:00:42]} d2 {[%emt 0:00:16]} 21. Rd1 {[%emt 0:03:10]} Rd6 {[%emt 0:27:53]} 22. Rc2 {[%emt 0:00:27]} Qb7 {[%emt 0:02:45]} 23. Rcxd2 {[%emt 0:02:43]} Rg6+ {[%emt 0:00:12]} 24. Kf1 {[%emt 0:00:03]} Qg2+ {[%emt 0:04:07]} 25. Ke2 {[%emt 0:00:15]} h5 {[%emt 0:00:52]} 26. Rd8+ {[%emt 0:01:47]} Rxd8 {[%emt 0:00:13]} 27. Rxd8+ {[%emt 0:00:07]} Kh7 {[%emt 0:00:13]} 28. Qxa7 {[%emt 0:02:53]} Qg4+ {[%emt 0:00:24]} 29. Kd2 {[%emt 0:02:12]} Qf3 {[%emt 0:01:31]} 30. Qxf7 {[%emt 0:26:52]} Qxf2+ {[%emt 0:00:21]} 31. Kd3 {[%emt 0:00:08]} Qf1+ {[%emt 0:01:29]} 32. Ke4 {[%emt 0:00:56]} Qb1+ {[%emt 0:01:52]} 33. Rd3 {[%emt 0:07:37]} Qh1+ {[%emt 0:02:08]} 34. Ke5 {[%emt 0:02:13]} Qxh2 {[%emt 0:00:35]} 35. Rd8 {[%emt 0:06:42]} Rg5+ {[%emt 0:03:18]} 36. Kd4 {[%emt 0:05:02]} Qd2+ {[%emt 0:02:36]} 37. Ke4 {[%emt 0:00:28]} Qc2+ {[%emt 0:01:38]} 38. Rd3 {[%emt 0:06:29]} Qc6+ {[%emt 0:04:13]} 39. Kd4 {[%emt 0:00:28]} Ra5 {[%emt 0:01:49]} 40. Rc3 {[%emt 0:02:05]} Ra4+ {[%emt 0:14:58]} 41. Kd3 {[%emt 0:00:11]} Qa6+ {[%emt 0:00:07]} 42. Kc2 {[%emt 0:01:00]} Rxa2+ {[%emt 0:01:21]} 43. Kb1 {[%emt 0:00:20]} Ra5 {[%emt 0:00:16]} 44. Qc4 {[%emt 0:00:25]} Qb7+ {[%emt 0:01:11]} 45. Rb3 {[%emt 0:00:22]} Qh1+ {[%emt 0:00:12]} 46. Kb2 {[%emt 0:00:19]} Qa1+ {[%emt 0:00:17]} 47. Kc2 {[%emt 0:00:09]} Ra2+ {[%emt 0:00:09]} 48. Kd3 {[%emt 0:00:07]} Qf1+ {[%emt 0:03:42]} 49. Kd4 {[%emt 0:00:17]} Rd2+ {[%emt 0:00:53]} 50. Rd3 {[%emt 0:00:11]} Qa1+ {[%emt 0:00:22]} 51. Ke4 {[%emt 0:00:13]} Qa8+ {[%emt 0:01:36]} 52. Qd5 {[%emt 0:00:42]} Qa4+ {[%emt 0:01:14]} 53. Qd4 {[%emt 0:00:29]} Qc6+ {[%emt 0:00:57]} 54. Qd5 {[%emt 0:01:29]} Qg6+ {[%emt 0:00:28]} 55. f5 {[%emt 0:02:08]} Qg2+ 56. Ke5 {[%emt 0:00:30]} Qxd5+ {[%emt 0:09:41]} 57. Rxd5 {[%emt 0:00:30]} 1/2-1/2

[Event "FIDE World Cup O10-B 2024"]
[Site "Batumi"]
[Date "2024.06.28"]
[Round "6.5"]
[White "Xia, Joshua"]
[Black "Zhauynbay, Alimzhan"]
[Result "0-1"]
[ECO "B90"]
[WhiteElo "2060"]
[BlackElo "1903"]
[Annotator "NA RC"]
[PlyCount "104"]
[EventDate "2024.06.23"]
[EventType "swiss"]
[EventCountry "GEO"]
[SourceTitle "playchess.com"]
[Source "ChessBase"]
[SourceQuality "1"]
[TimeControl "5400+30"]

1. e4 {[%emt 0:00:01]} c5 {[%emt 0:00:34]} 2. Nf3 {[%emt 0:00:09]} d6 {[%emt 0:00:10]} 3. d4 {[%emt 0:00:04]} cxd4 {[%emt 0:00:05]} 4. Nxd4 {[%emt 0:00:04]} Nf6 {[%emt 0:00:07]} 5. Nc3 {[%emt 0:00:04]} a6 {[%emt 0:00:06]} 6. Be3 {[%emt 0:00:03]} Ng4 {[%emt 0:00:32]} 7. Bc1 {[%emt 0:00:10]} Nf6 {[%emt 0:00:12]} 8. f3 {[%emt 0:00:06]} Qb6 {[%emt 0:00:44]} 9. Nb3 {[%emt 0:11:56]} e6 {[%emt 0:00:34]} 10. Qe2 {[%emt 0:00:30]} Qc7 {[%emt 0:02:04]} 11. Be3 {[%emt 0:02:03] B90: Sicilian Najdorf: Unusual White 6th moves, 6 Be3 Ng4 and 6 Be3 e5.} b5 {[%emt 0:06:38]} 12. Qd2 {[%emt 0:04:41]} (12. a3 $142) 12... Nbd7 {[%emt 0:09:47]} (12... Bb7 $15) 13. g4 {[%emt 0:03:37]} Ne5 {[%emt 0:05:10]} 14. Nd4 {[%emt 0:02:11]} b4 {[%emt 0:05:20]} 15. Nd1 {[%emt 0:01:00]} Nc4 {[%emt 0:01:43]} 16. Bxc4 {[%emt 0:00:08]} Qxc4 {[%emt 0:00:03]} 17. h4 {[%emt 0:02:57]} Bb7 {[%emt 0:04:48]} 18. Nf2 {[%emt 0:05:04]} d5 {[%emt 0:02:08]} 19. e5 {[%emt 0:03:56]} Nd7 {[%emt 0:00:38]} 20. f4 {[%emt 0:01:17]} h5 {[%emt 0:02:51]} 21. g5 {[%emt 0:04:55]} g6 {[%emt 0:01:26]} 22. Nd3 {[%emt 0:01:14]} Be7 {[%emt 0:01:43]} 23. Kf2 {[%emt 0:05:52]} O-O {[%emt 0:01:43]} 24. b3 {[%emt 0:02:53]} Qc7 {[%emt 0:00:22]} 25. Rae1 {[%emt 0:06:11]} (25. Nxb4 $11 Nc5 26. Kg2) 25... Nc5 {[%emt 0:01:37]} 26. Nxc5 {[%emt 0:01:34]} Bxc5 $17 {[%emt 0:00:24]} 27. Rhf1 {[%emt 0:02:07]} Rac8 {[%emt 0:01:27]} 28. Rc1 {[%emt 0:03:32]} Qd7 {[%emt 0:02:28]} 29. Rfe1 {[%emt 0:07:15]} Kg7 {[%emt 0:04:59]} 30. Kg3 {[%emt 0:06:10]} Rc7 {[%emt 0:03:23]} 31. Kh2 {[%emt 0:02:05]} Rfc8 {[%emt 0:02:51]} 32. Re2 {[%emt 0:01:02]} a5 {[%emt 0:01:08]} 33. Rg2 {[%emt 0:08:37]} Ba7 {[%emt 0:06:52]} 34. f5 {[%emt 0:07:22]} exf5 {[%emt 0:07:45]} 35. e6 {[%emt 0:01:28]} fxe6 {[%emt 0:00:20]} 36. Bf4 {[%emt 0:00:10]} Rc3 {[%emt 0:00:44]} 37. Re2 {[%emt 0:00:36]} Kf7 {[%emt 0:00:30]} 38. Rce1 {[%emt 0:02:01]} Re8 {[%emt 0:01:09]} 39. Be5 {[%emt 0:01:05]} Ba6 {[%emt 0:01:02]} 40. Re3 {[%emt 0:04:20]} Rxe3 {[%emt 0:01:27]} 41. Rxe3 {[%emt 0:00:00]} Qc8 {[%emt 0:00:23]} 42. Bf6 {[%emt 0:00:00]} Bb8+ {[%emt 0:02:24]} 43. Kh1 {[%emt 0:00:00]} Bf4 {[%emt 0:01:32]} 44. Nf3 {[%emt 0:00:00]} Bb7 {[%emt 0:01:23]} 45. Kg1 {[%emt 0:00:22]} Bxe3+ {[%emt 0:04:46]} 46. Qxe3 {[%emt 0:00:12]} Qxc2 {[%emt 0:01:30]} 47. Qb6 {[%emt 0:00:45]} Qc1+ {[%emt 0:01:08]} 48. Kh2 {[%emt 0:00:36]} Qf4+ {[%emt 0:02:29]} 49. Kg2 {[%emt 0:00:12]} Qb8 {[%emt 0:00:22]} 50. Ne5+ {[%emt 0:00:41]} Kg8 {[%emt 0:00:06]} 51. Nxg6 {[%emt 0:00:54]} d4+ {[%emt 0:00:12]} 52. Kh3 {[%emt 0:00:17]} Bg2+ {[%emt 0:00:06]} 0-1